Cogmind - Beta 13 @@@ ROGUE MODE // 2024.05.03 @ 00:23:54 Player: CONM Result: Destroyed by G-47 Trooper with Particle Gun Performance ------------- Evolutions (2) 1000 Regions Visited (5) 1000 Robots Destroyed (18) 90 Value Destroyed (780) 780 Prototype IDs (0) 0 Alien Tech Used (0) 0 Bonus (400) 400 TOTAL SCORE: 3270 Bonus ------- Pacifist 200 Entered Garrisons 200 Cogmind --------- Core Integrity 0/550 Matter 88/300 Energy 99/100 System Corruption 0% Temperature Cool (9) Movement Core (100) Ox1 Location -8/Garrison Parts ------- > --- POWER (1) -------- (None) > --- PROPULSION (4) --- (None) > --- UTILITY (4) ------ Small Storage Unit > --- WEAPON (2) ------- (None) > --- INVENTORY (8) ---- Ion Engine Huge Storage Unit Improved Light Armor Plating EM Pulse Gun Peak State ------------ > --- POWER ------------ Improved Ion Engine > --- PROPULSION ------- Armored Treads Armored Treads Armored Treads Armored Treads > --- UTILITY ---------- Small Storage Unit Sensor Array Targeting Computer Medium Armor Plating > --- WEAPON ----------- Rocket Launcher Mini Grenade Launcher > --- INVENTORY -------- Ion Engine Huge Storage Unit EM Pulse Gun Rocket Launcher Rocket Launcher [Rating: 23] Favorites ----------- Power Improved Ion Engine Engine Improved Ion Engine Propulsion Armored Treads Treads Armored Treads Leg Aluminum Leg Utility Small Storage Unit Device Sensor Array Storage Small Storage Unit Processor Targeting Computer Protection Medium Armor Plating Weapon Rocket Launcher Energy Gun EM Pulse Gun Ballistic Gun Assault Rifle Launcher Rocket Launcher Special Weapon Mining Laser Build | -11 -10 -10 -9 -8 -8 ------- Run | Yrd Mat Min Mat Mat Gar Slots Evolved 4 | . . . 2 2 . Power . | . . . . . . Propulsion 2 | . . . 1 1 . Utility 2 | . . . 1 1 . Weapon . | . . . . . . Parts Attached 26 | 7 3 2 8 4 2 Power 3 | 2 . 1 . . . Engine 3 | 2 . 1 . . . Core . | . . . . . . Reactor . | . . . . . . Propulsion 9 | 2 . . 6 1 . Treads 4 | . . . 3 1 . Leg 5 | 2 . . 3 . . Wheel . | . . . . . . Hover . | . . . . . . Flight . | . . . . . . Utility 6 | 1 3 . 1 1 . Device 1 | . 1 . . . . Storage 3 | 1 2 . . . . Processor 1 | . . . 1 . . Hackware . | . . . . . . Protection 1 | . . . . 1 . Artifact . | . . . . . . Weapon 8 | 2 . 1 1 2 2 Energy Gun 1 | 1 . . . . . Energy Cannon . | . . . . . . Ballistic Gun 1 | 1 . . . . . Ballistic Cannon . | . . . . . . Launcher 5 | . . . 1 2 2 Special Weapon 1 | . . 1 . . . Impact Weapon . | . . . . . . Slashing Weapon . | . . . . . . Piercing Weapon . | . . . . . . Special Melee Weapon . | . . . . . . Unidentified Prototypes . | . . . . . . Parts Lost 9 | . . . . . 9 Power 1 | . . . . . 1 Propulsion 1 | . . . . . 1 Utility 3 | . . . . . 3 Weapon 4 | . . . . . 4 Highest Loss Streak 7 | . . . . . 7 To Critical Strikes . | . . . . . . Average Slot Usage (%) 90 | . 94 100 93 100 80 Engine 10 | . 14 14 11 9 6 Treads 16 | . . . 12 36 28 Leg 12 | . 28 28 16 . . Device 9 | . 8 14 11 9 7 Storage 10 | . 14 14 11 9 9 Processor 5 | . . . 8 9 6 Protection 3 | . . . . 9 6 Energy Gun 3 | . 14 12 . . . Ballistic Gun 4 | . 14 14 4 . . Launcher 8 | . . . 6 18 14 Special Weapon 3 | . . 1 11 . . Naked Turns . | . . . . . . Heaviest Build 28 | 14 15 17 16 28 28 Greatest Support 80 | 20 20 20 60 80 80 Greatest Overweight (x) 3 | 3 . . . . 2 Average Overweight (x) . | 2 . . . . . Largest Inventory Capacity 25 | 8 25 8 8 8 8 Average Capacity 8 | 7 8 8 8 8 8 Most Carried 8 | 5 2 5 8 7 5 Average Carried 4 | 3 1 3 6 5 4 Final Capacity 8 | 8 8 8 8 8 8 Final Carried 8 | 1 2 5 8 5 4 Class Distribution -------------------- 100% | Mutant Dominant Class ---------------- Mutant | -10/Materials Mutant | -10/Mines Mutant | -9/Materials Mutant | -8/Materials Mutant | -8/Garrison Resources | -11 -10 -10 -9 -8 -8 ----------- Run | Yrd Mat Min Mat Mat Gar Matter Collected 471 | 169 . 104 50 . 148 Remotely . | . . . . . . Salvage Created 451 | . . . 122 57 272 Parts 20 | . . . 1 2 17 Haulers Intercepted . | . . . . . . Recyclers Shooed . | . . . . . . Parts Field Recycled . | . . . . . . Retrieved Matter . | . . . . . . Parts Self-Destructed . | . . . . . . Prevented . | . . . . . . Kills | -11 -10 -10 -9 -8 -8 ------- Run | Yrd Mat Min Mat Mat Gar Combat Hostiles Destroyed 16 | . . . 3 3 10 AOE 16 | . . . 3 3 10 Classes Destroyed 5 | . . . 3 . 2 Recycler 1 | . . . 1 . . Watcher 1 | . . . . . 1 Grunt 10 | . . . 2 3 5 Duelist 1 | . . . . . 1 Sentry 5 | . . . 1 . 4 Best Kill Streak 5 | . . . 4 3 5 Combat Bots Only 5 | . . . 3 3 5 Max Kills in Single Turn 3 | . . . 2 1 3 Gunslinging . | . . . . . . Exploded 3 | . . . 2 1 3 Melee . | . . . . . . Uniques/NPCs Destroyed . | . . . . . . Combat | -11 -10 -10 -9 -8 -8 -------- Run | Yrd Mat Min Mat Mat Gar Hostile Shots Fired 144 | . 2 . 35 7 100 Missed 37 | . . . 14 4 19 Damage Taken 2155 | . 32 . 295 46 1782 Core 612 | . . . 60 . 552 Absorbed by Shields . | . . . . . . Core Remaining (%) 95 | 100 . 100 85 . . Volleys Fired 29 | . . 1 10 4 14 Largest 2 | . . 1 1 2 2 Hottest 100 | . . 100 100 66 66 Shots Fired 35 | . . 1 10 8 16 Gun . | . . . . . . Cannon . | . . . . . . Launcher 27 | . . . 3 8 16 Special 8 | . . 1 7 . . Kinetic . | . . . . . . Thermal 8 | . . 1 7 . . Explosive 27 | . . . 3 8 16 Electromagnetic . | . . . . . . Robot Hit Streak 5 | . . . 3 3 5 Robot Miss Streak 2 | . . . 1 2 2 Penetration Max . | . . . . . . Secondary Targets . | . . . . . . Shots Hit Robots 18 | . . . 3 4 11 Core Hits 31 | . . . 5 6 20 Critical Kills . | . . . . . . Critical Parts Destroyed . | . . . . . . Critical Strikes . | . . . . . . Melee Attacks . | . . . . . . Impact . | . . . . . . Slashing . | . . . . . . Piercing . | . . . . . . Sneak Attacks . | . . . . . . Combat Hostiles . | . . . . . . Follow-up Attacks . | . . . . . . Damage Inflicted 1710 | . . . 373 340 997 Guns . | . . . . . . Cannons . | . . . . . . Explosions 1701 | . . . 373 340 988 Melee . | . . . . . . Ramming 9 | . . . . . 9 Kinetic . | . . . . . . Thermal . | . . . . . . Explosive 1701 | . . . 373 340 988 Electromagnetic . | . . . . . . Impact . | . . . . . . Slashing . | . . . . . . Piercing . | . . . . . . Highest Corruption . | . . . . . . Average Corruption . | . . . . . . Corruption Purged . | . . . . . . Corruption Blocked . | . . . . . . Overload Shots . | . . . . . . Overflow Damage 51 | . . . 15 . 36 Projectiles . | . . . . . . Explosions 51 | . . . 15 . 36 Melee . | . . . . . . Knockbacks . | . . . . . . Impact . | . . . . . . Kinetic . | . . . . . . Secondary . | . . . . . . Self-Inflicted Damage 398 | . . . 37 1 360 Shots 15 | . . . 2 1 12 Rammed 8 | . . . . . 8 Targets Rammed 8 | . . . . . 8 Kicked . | . . . . . . Crushed . | . . . . . . Highest Temperature 30 | . . 24 30 27 18 Average Temperature 12 | . . 13 10 18 9 Received Heat Transfer 744 | . 18 . 114 27 585 Siege Activations . | . . . . . . Robots Corrupted . | . . . . . . Combat Hostiles . | . . . . . . Parts Fried . | . . . . . . Impact Corruptions . | . . . . . . Robots Melted . | . . . . . . Combat Hostiles . | . . . . . . Parts Melted . | . . . . . . Heat Transferred . | . . . . . . Parts Sabotaged . | . . . . . . Parts Stolen . | . . . . . . Parts Stripped . | . . . . . . Power Chain Reactions . | . . . . . . Alert | -11 -10 -10 -9 -8 -8 ------- Run | Yrd Mat Min Mat Mat Gar Peak Influence 339 | . 15 6 165 106 339 Initial 68 | . . 5 1 . 68 Average 71 | . 1 5 66 60 143 Maximum Alert Level 1 | . . . . . 1 Low Security (%) 96 | 100 100 100 100 100 88 Level 1 3 | . . . . . 11 Level 2 . | . . . . . . Level 3 . | . . . . . . Level 4 . | . . . . . . Level 5 . | . . . . . . High Security . | . . . . . . Max Security . | . . . . . . Squads Dispatched 1 | . 1 . . . . Investigation . | . . . . . . Extermination . | . . . . . . Reinforcement 1 | . 1 . . . . Assault . | . . . . . . Garrison . | . . . . . . Intercept . | . . . . . . Searches Triggered . | . . . . . . Construction Impeded . | . . . . . . Haulers Reinforced . | . . . . . . Active Scanning Responses . | . . . . . . Cargo Convoy Interrupts . | . . . . . . Stealth | -11 -10 -10 -9 -8 -8 --------- Run | Yrd Mat Min Mat Mat Gar Distress Signals 2 | . 1 . 1 . . Communications Jammed . | . . . . . . Distress Signals . | . . . . . . Times Spotted 24 | . 4 . 5 3 12 Peak Tracking Total 7 | . 5 . 3 3 7 Tactical Retreats . | . . . . . . Traps | -11 -10 -10 -9 -8 -8 ------- Run | Yrd Mat Min Mat Mat Gar Traps Triggered 2 | . . . . . 2 Indirectly . | . . . . . . Trap Hack Attempts . | . . . . . . Triggered . | . . . . . . Disarmed . | . . . . . . Reprogrammed . | . . . . . . Reused . | . . . . . . Traps Extracted . | . . . . . . Installed . | . . . . . . Triggered . | . . . . . . Machines | -11 -10 -10 -9 -8 -8 ---------- Run | Yrd Mat Min Mat Mat Gar Machines Disabled 5 | . . . 2 . 3 Max in Single Turn 3 | . . . 2 . 3 Machines Repaired . | . . . . . . Machines Dismantled . | . . . . . . Machines Sabotaged . | . . . . . . Overloaded Fab Kills . | . . . . . . Hacking | -11 -10 -10 -9 -8 -8 --------- Run | Yrd Mat Min Mat Mat Gar Machines Accessed 4 | . . 1 1 1 1 Terminals 1 | . . . . . 1 Fabricators . | . . . . . . Repair Stations . | . . . . . . Recycling Units 1 | . . . 1 . . Scanalyzers . | . . . . . . Garrison Access 1 | . . . . 1 . Total Hacks 6 | . . 1 2 1 2 Successful 5 | . . 1 2 1 1 Failed 1 | . . . . . 1 Catastrophic . | . . . . . . Database Lockouts . | . . . . . . Manual . | . . . . . . Terminals 2 | . . . . . 2 Fabricators . | . . . . . . Repair Stations . | . . . . . . Recycling Units 2 | . . . 2 . . Scanalyzers . | . . . . . . Garrison Access 1 | . . . . 1 . Terminal Hacks 2 | . . 1 . . 1 Open Door 1 | . . 1 . . . Security Stations 1 | . . . . . 1 Fabricator Hacks . | . . . . . . Repair Station Hacks . | . . . . . . Recycling Unit Hacks 2 | . . . 2 . . Process 1 | . . . 1 . . Report Inventory 1 | . . . 1 . . Scanalyzer . | . . . . . . Garrison Access Hacks 1 | . . . . 1 . Unlock Access 1 | . . . . 1 . Unauthorized Hacks . | . . . . . . Terminals . | . . . . . . Fabricators . | . . . . . . Repair Stations . | . . . . . . Recycling Units . | . . . . . . Scanalyzers . | . . . . . . Garrison Access . | . . . . . . Data Cores Recovered . | . . . . . . Used . | . . . . . . Hacking Detections 2 | . . . 1 . 1 Full Trace Events . | . . . . . . Feedback Events . | . . . . . . Feedback Blocked . | . . . . . . Robot Schematics Acquired . | . . . . . . Robots Built . | . . . . . . Authchips . | . . . . . . Time . | . . . . . . Total Robot Build Rating . | . . . . . . Part Schematics Acquired . | . . . . . . Parts Built . | . . . . . . Authchips . | . . . . . . Time . | . . . . . . Total Part Build Rating . | . . . . . . Parts Repaired . | . . . . . . Time . | . . . . . . Parts Recycled . | . . . . . . Recycled Matter 7 | . . . 7 . . Retrieved Matter . | . . . . . . Retrieved Components . | . . . . . . Parts Scanalyzed . | . . . . . . Part Schematics Acquired . | . . . . . . Parts Damaged . | . . . . . . Bothacking | -11 -10 -10 -9 -8 -8 ------------ Run | Yrd Mat Min Mat Mat Gar Used RIF Installer . | . . . . . . Robots Hacked . | . . . . . . Non-combat . | . . . . . . Combat . | . . . . . . Robot Hacks Applied . | . . . . . . Relay Couplers Released . | . . . . . . Fabnet Peak Effective % . | . . . . . . Robots Rewired . | . . . . . . Allies Hacked . | . . . . . . Hacks Repelled . | . . . . . . Allies | -11 -10 -10 -9 -8 -8 -------- Run | Yrd Mat Min Mat Mat Gar Total Allies 1 | . . 1 . . . Largest Group 1 | . . 1 1 . . Highest-Rated Group 31 | . . 31 31 . . Highest-Rated Ally 31 | . . 31 31 . . Total Orders . | . . . . . . Ally Attacks 6 | . . . 6 . . Total Damage 82 | . . . 82 . . Kills 1 | . . . 1 . . Allies Corrupted . | . . . . . . Allies Melted . | . . . . . . Intel | -11 -10 -10 -9 -8 -8 ------- Run | Yrd Mat Min Mat Mat Gar Robot Analysis Total . | . . . . . . Derelict Logs Recovered 2 | . . 2 . . . Drone Launches . | . . . . . . Drone Recoveries . | . . . . . . Exploration | -11 -10 -10 -9 -8 -8 ------------- Run | Yrd Mat Min Mat Mat Gar Turns Passed 1546 | 139 136 226 429 91 525 Spaces Moved 950 | 69 98 169 271 44 299 Core 117 | 66 . . . . 51 Treads 382 | . . . 90 44 248 Legs 451 | 3 98 169 181 . . Wheels . | . . . . . . Hover . | . . . . . . Flight . | . . . . . . Fastest Speed 50 | 50 120 120 120 170 100 Average Speed 144 | 183 120 120 136 170 159 Slowest Speed 200 | 200 120 120 170 170 170 Overloaded Moves . | . . . . . . Propulsion Burnouts . | . . . . . . Robots Hopped . | . . . . . . Cave-ins Triggered . | . . . . . . Exploration Rate (%) 19 | 5 13 34 21 6 36 Regions Visited 5 Branch Regions 1 Pre-discovered Areas . | . . . . . . Known Exits Taken 1 | . . . . 1 . Unknown Exits Taken 4 | 1 1 1 1 . . Scrap Searched . | . . . . . . Spaces Dug 7 | . . 1 6 . . Terrain Destroyed 244 | . . 1 56 36 151 Melee . | . . . . . . Projectile 8 | . . 1 7 . . AOE 236 | . . . 49 36 151 Terrain Rammed . | . . . . . . Walls Destroyed . | . . . . . . Machines Disabled . | . . . . . . Actions | -11 -10 -10 -9 -8 -8 --------- Run | Yrd Mat Min Mat Mat Gar Total 1072 | 80 115 188 309 52 328 Wait 34 | . 13 12 2 . 7 Move 943 | 68 97 168 270 43 297 Hop . | . . . . . . Pick Up 21 | 5 2 4 9 . 1 Fast Attach 6 | 2 . . 4 . . Attach 12 | 4 1 . 2 3 2 Detach . | . . . . . . Swap 8 | 1 2 2 2 1 . Drop 12 | . . 1 10 1 . Fire 29 | . . 1 10 4 14 Melee . | . . . . . . Ram . | . . . . . . Kick . | . . . . . . Crush 7 | . . . . . 7 Escape Stasis . | . . . . . . Rewire . | . . . . . . Trap . | . . . . . . Miscellaneous . | . . . . . . Route ------- -11/Scrapyard -10/Materials -10/Mines -9/Materials -8/Materials -8/Garrison (discovered 1 exit: [*Mat]) History --------- Turn | Location | Event 11 | -11/Scrapyard | Discovered new exit (range 16) 140 | -11/Scrapyard | Entered Materials 166 | -10/Materials | Discovered new exit (range 6) 276 | -10/Materials | Entered Mines 282 | -10/Mines | Learned Materials terminal intel 298 | -10/Mines | Joined a pair of Derelicts in attacking an 0b10 outpost 302 | -10/Mines | Build established: Mutant 356 | -10/Mines | Learned Materials security intel 407 | -10/Mines | Found the Drone Emporium 413 | -10/Mines | Found Prototype Device 476 | -10/Mines | Discovered new exit (range 4) 478 | -10/Mines | Received a Mining Laser from a helpful Derelict 502 | -10/Mines | Entered Materials 502 | -9/Materials | Accompanied by 1 ally 502 | -9/Materials | Evolved 2 slots: Propulsion x1, Utility x1 504 | -9/Materials | Loaded intel: 12 terminal locations 759 | -9/Materials | Discovered new exit (range 5) 931 | -9/Materials | Entered another Materials area 931 | -8/Materials | Evolved 2 slots: Propulsion x1, Utility x1 1020 | -8/Materials | Identified exit to Garrison 1022 | -8/Materials | Entered Garrison 1042 | -8/Garrison | Triggered checkpoint 1326 | -8/Garrison | Triggered checkpoint 1379 | -8/Garrison | Discovered new exit (range 12) 1408 | -8/Garrison | Attempted to access garrison exit controls, blocked by remote lockdown 1460 | -8/Garrison | Triggered checkpoint 1467 | -8/Garrison | Core integrity fell below 50% 1482 | -8/Garrison | Lost 7 parts (1p1n3u2w) 1483 | -8/Garrison | Learned Materials security intel 1513 | -8/Garrison | Core integrity fell below 20% 1524 | -8/Garrison | Triggered checkpoint 1547 | -8/Garrison | Destroyed by G-47 Trooper with Particle Gun Last Messages --------------- 01486_ Destroyed Imp. Ion Engine. 01486_ L-31 Rogue destroyed. 01488_ G-47 Trooper destroyed. 01490_ Y-45 Defender destroyed. 01490_ G-47 Trooper destroyed. 01495_ The unstable cave ceiling collapses. 01499_ Acquired Imp. Light Armor Plating. 01504_ The unstable cave ceiling collapses. 01505_ Acquired 38 matter. 01506_ Rocket Launcher destroyed. 01506_ Acquired 39 matter. 01507_ The unstable cave ceiling collapses. 01533_ Y-45 Defender destroyed. [Achievement: Remodeling] 01539_ Acquired 46 matter. 01540_ Critical hit (Burn: +37). 01540_ G-47 Trooper destroyed. 01544_ The unstable cave ceiling collapses. 01544_ W-25 Informer destroyed. 01545_ Mni. Grenade Launcher destroyed. Map ----- +----------------------------------------------------+ | ?????????????????????????????????????????????????? | | ?????????????????????????????????????????????????? | | ?????????????????????????????????????????????????? | | ?????????????????????????????????????????????????? | | ?????????????????????????????????????????????????? | | ?????????????????????????????????????????????????? | | ?????????????????????????????????????????????????? | | ?????????????????????????????????????????????????? | | ?????????????????????????????????????????????????? | | ?????????????????????????????????????????????????? | | ???????????????????????????????????????????? ???? | | ???????????????????????????????????????????# ???? | | ????????????????????????????????######""""## ##?? | | ???????????????????????????????## ##? | | ??????????????????????????????? ? | | ???????????????????????????????? ?? | | ???????????????????????????##???# ## ## #?? | | ????????????????????????### ###?# ## ## #?? | | ????????????????????????# #? "?? | | ????????###?#######?????# # "?? | | ???????## ### # ##????# # "?? | | ???????# # ##????# g*% "?? | | ??????## * ###???# %*### ## ## #?? | | ??????# = #???# [ # ## ## ^### | | ??????#" # !!! ! ###### = # | | ??????# # ! @ *! # | | ??????# #### # #### #### # ## ### | | ??????####??##### #??# #??# #### ## ######?? | | ????????????????# #??# #??#####??# ## #??????? | | ????????????????# #??# #?????????# #######??????? | | ????????????????# #??#% ?????????# #????????????? | | ??????# #######=####+#?????????# #????????????? | | ??????# "#?????????# #????????????? | | ?????????####### ### #?????????# #????????????? | | ???????????????# #?# #?????????# #????????????? | | ???????????????#####?# #?????????# #????????????? | | ?????????????????????# ########### #????????????? | | ?????????????????????# #????????????? | | ?????????????????????# #????????????? | | ?????????????????????## ############????????????? | | ??????????????????????# #???????????????????????? | | ??????????????????????# #???????????????????????? | | ??????????????????????# #???????????????????????? | | ??????????????????????# +???????????????????????? | | ???????????????????#### #???????????????????????? | | ??????????????????## #==##??????????????????????? | | ?????????????????## ##?????????????????????? | | ?????????????????# # #?????????????????????? | | ??????????????????# #?????????????????????? | | ??????????????????# < #?????????????????????? | +----------------------------------------------------+ Best States ------------- Heat Dissipation 31 Energy Generation 12 Energy Capacity 265 Matter Stores 263 Matter Capacity 300 Sight Range 16 Robot Scan Range 14 Terrain Scan Density 10 Armor Coverage 225 Evasion (%) 55 Targeting Accuracy 5 Recoil Reduction 4 Item Schematics ----------------- None Robot Schematics ------------------ None Fabricated ------------ Nothing Alien Tech Used ----------------- None Achievements -------------- Remodeling Challenges ------------ None Game ------ Seed DrainedSignalCompressor Manual? 0 Play Time 00:19:03 Cumulative 10.0 hours Start 2024.05.03 @ 00:05:44 End 2024.05.03 @ 00:23:54 Sessions 1 Manual Loads 0 Difficulty Rogue Special Mode None Game No. 22 Rogue 22 Adventurer 0 Explorer 0 Win Type - Total 0 Types 0/0/0/0/0/0/0/0/0 Lore% 14 Gallery% 11 Achievement% 10 Wizard Run 0 Options --------- Layout 1 ASCII 0 Keyboard 0 Movement Arrows Keybinds 0 Fullscreen 1 Font 24/Smallcaps Map View 50x40 Zoom Use 0% Tactical HUD 1 Map Filters NONE Filters NONE Steam 1 RUN: 94af12fe-0a37-45d0-8e77-6acd613e94a8